[Event "*** Titled Tuesday Blitz"]
[Site "Chess.com"]
[Date "2019.07.02"]
[Round "10"]
[White "kosmeg"]
[Black "GMKrikor"]
[Result "1-0"]
[WhiteElo "2477"]
[BlackElo "2694"]
[TimeControl "180+2"]
[EndTime "15:15:53 PDT"]
[Termination "kosmeg won by resignation"]

1. d4 {[%clk 0:03:01.9]} 1... f5 {[%clk 0:02:55.7]} 2. Bg5 {[%clk 0:03:01.8]}
2... Nf6 {[%clk 0:02:50.7]} 3. Bxf6 {[%clk 0:03:02.1]} 3... exf6 {[%clk
0:02:49]} 4. e3 {[%clk 0:03:03.7]} 4... g6 {[%clk 0:02:49.1]} 5. c4 {[%clk
0:03:04.5]} 5... c5 {[%clk 0:02:40.8]} 6. dxc5 {[%clk 0:03:00.2]} 6... f4 {[%clk
0:02:31.6]} 7. exf4 {[%clk 0:02:54.6]} 7... Bxc5 {[%clk 0:02:31.8]} 8. Nc3
{[%clk 0:02:29.1]} 8... Qb6 {[%clk 0:02:12.2]} 9. Qd2 {[%clk 0:02:26.4]} 9...
O-O {[%clk 0:02:02.6]} 10. Nd5 {[%clk 0:01:45.7]} 10... Re8+ {[%clk 0:01:44]}
11. Kd1 {[%clk 0:01:41.9]} 11... Qd8 {[%clk 0:01:38.1]} 12. Bd3 {[%clk
0:01:37.2]} 12... Nc6 {[%clk 0:01:15.7]} 13. Nf3 {[%clk 0:01:37.6]} 13... d6
{[%clk 0:00:58.4]} 14. Re1 {[%clk 0:01:33.6]} 14... Rxe1+ {[%clk 0:00:55.6]} 15.
Kxe1 {[%clk 0:01:32.5]} 15... Bg4 {[%clk 0:00:55.1]} 16. Be2 {[%clk 0:01:14.9]}
16... Kg7 {[%clk 0:00:56.6]} 17. Kf1 {[%clk 0:01:12.3]} 17... Qd7 {[%clk
0:00:54.5]} 18. Rd1 {[%clk 0:01:10]} 18... Re8 {[%clk 0:00:53.6]} 19. Re1 {[%clk
0:01:03.5]} 19... a5 {[%clk 0:00:40.5]} 20. a3 {[%clk 0:01:03.2]} 20... Bxf3
{[%clk 0:00:37.1]} 21. Bxf3 {[%clk 0:01:04.3]} 21... Rxe1+ {[%clk 0:00:36.1]}
22. Qxe1 {[%clk 0:01:04.6]} 22... Nd4 {[%clk 0:00:36.3]} 23. Bd1 {[%clk
0:01:01.6]} 23... Qd8 {[%clk 0:00:19.3]} 24. b4 {[%clk 0:00:59.2]} 24... axb4
{[%clk 0:00:20.4]} 25. axb4 {[%clk 0:01:01.1]} 25... Ba7 {[%clk 0:00:21.9]} 26.
Ba4 {[%clk 0:00:50.4]} 26... Nf5 {[%clk 0:00:12.9]} 27. Qe6 {[%clk 0:00:47]}
27... Nd4 {[%clk 0:00:13]} 28. Qe4 {[%clk 0:00:46.4]} 28... Nf5 {[%clk
0:00:05.3]} 29. g3 {[%clk 0:00:45.7]} 29... Nd4 {[%clk 0:00:06.7]} 30. Kg2
{[%clk 0:00:46.5]} 30... Nf5 {[%clk 0:00:08.4]} 31. h4 {[%clk 0:00:47.5]} 31...
Nd4 {[%clk 0:00:09.2]} 32. Bd1 {[%clk 0:00:45.2]} 32... f5 {[%clk 0:00:08.6]}
33. Qd3 {[%clk 0:00:45.8]} 33... Nc6 {[%clk 0:00:09.1]} 34. h5 {[%clk
0:00:45.7]} 34... Nd4 {[%clk 0:00:05.6]} 35. hxg6 {[%clk 0:00:45.4]} 35... hxg6
{[%clk 0:00:06.8]} 36. Ba4 {[%clk 0:00:40.9]} 36... Qf8 {[%clk 0:00:04.1]} 37.
Qd1 {[%clk 0:00:39.4]} 37... Qf7 {[%clk 0:00:04.1]} 38. Qe1 {[%clk 0:00:37.5]}
38... Qe6 {[%clk 0:00:05.3]} 39. Qxe6 {[%clk 0:00:34.8]} 39... Nxe6 {[%clk
0:00:07.2]} 40. Bd7 {[%clk 0:00:30.5]} 40... Nd8 {[%clk 0:00:03.8]} 41. Kf3
{[%clk 0:00:30.2]} 41... Kf7 {[%clk 0:00:04.9]} 42. Ke2 {[%clk 0:00:31]} 42...
Bd4 {[%clk 0:00:05.7]} 43. f3 {[%clk 0:00:31.8]} 43... Bg1 {[%clk 0:00:05.1]}
44. g4 {[%clk 0:00:32.4]} 44... fxg4 {[%clk 0:00:04.9]} 45. fxg4 {[%clk
0:00:34.3]} 45... Bd4 {[%clk 0:00:04.2]} 46. Kd3 {[%clk 0:00:35]} 46... Bg1
{[%clk 0:00:04.3]} 47. Ke4 {[%clk 0:00:36.1]} 47... Bf2 {[%clk 0:00:05.1]} 48.
b5 {[%clk 0:00:36.7]} 48... Bc5 {[%clk 0:00:05.6]} 49. f5 {[%clk 0:00:34.1]}
49... gxf5+ {[%clk 0:00:06.6]} 50. Kxf5 {[%clk 0:00:34.7]} 50... Kg7 {[%clk
0:00:04.3]} 51. g5 {[%clk 0:00:35.6]} 51... b6 {[%clk 0:00:05.7]} 52. g6 {[%clk
0:00:33.7]} 52... Bg1 {[%clk 0:00:05]} 53. Nf4 {[%clk 0:00:34.3]} 53... Kg8
{[%clk 0:00:03.5]} 54. Be6+ {[%clk 0:00:29]} 54... Kg7 {[%clk 0:00:02.4]} 55.
Nh5+ {[%clk 0:00:29.7]} 55... Kh6 {[%clk 0:00:02.9]} 56. g7 {[%clk 0:00:21.4]}
56... Nxe6 {[%clk 0:00:03.3]} 57. g8=Q {[%clk 0:00:21.6]} 57... Nd4+ {[%clk
0:00:04.3]} 58. Ke4 {[%clk 0:00:22.7]} 58... Kxh5 {[%clk 0:00:04.1]} 59. Qxg1
{[%clk 0:00:23.2]} 1-0

[Event "*** Titled Tuesday Blitz"]
[Site "Chess.com"]
[Date "2019.07.02"]
[Round "10"]
[White "yoolund"]
[Black "Chesstrainer1"]
[Result "1-0"]
[WhiteElo "2608"]
[BlackElo "2440"]
[TimeControl "180+2"]
[EndTime "15:15:58 PDT"]
[Termination "yoolund won by resignation"]

1. d4 {[%clk 0:03:01.9]} 1... Nf6 {[%clk 0:03:00.3]} 2. Bg5 {[%clk 0:03:01.3]}
2... c5 {[%clk 0:02:59.6]} 3. d5 {[%clk 0:03:01.2]} 3... Ne4 {[%clk 0:02:53]} 4.
Bf4 {[%clk 0:02:54.5]} 4... Qb6 {[%clk 0:02:44.6]} 5. Nd2 {[%clk 0:02:53.7]}
5... Qxb2 {[%clk 0:02:29.5]} 6. Nxe4 {[%clk 0:02:46.6]} 6... Qb4+ {[%clk
0:02:29.9]} 7. Qd2 {[%clk 0:02:45.1]} 7... Qxe4 {[%clk 0:02:30.4]} 8. f3 {[%clk
0:02:44.8]} 8... Qb4 {[%clk 0:02:25.9]} 9. c3 {[%clk 0:02:32.9]} 9... Qa5 {[%clk
0:02:26.5]} 10. e4 {[%clk 0:02:30.2]} 10... g6 {[%clk 0:02:13.6]} 11. Be5 {[%clk
0:02:18.9]} 11... f6 {[%clk 0:02:14]} 12. Bf4 {[%clk 0:02:18.8]} 12... Bg7
{[%clk 0:02:11.5]} 13. Rb1 {[%clk 0:02:06.5]} 13... f5 {[%clk 0:02:07.5]} 14. e5
{[%clk 0:02:05.2]} 14... a6 {[%clk 0:00:53.9]} 15. c4 {[%clk 0:01:19.5]} 15...
Qxd2+ {[%clk 0:00:48.1]} 16. Kxd2 {[%clk 0:01:21.4]} 16... g5 {[%clk 0:00:48.3]}
17. Be3 {[%clk 0:01:06.5]} 17... Bxe5 {[%clk 0:00:43.7]} 18. Bxc5 {[%clk
0:01:07.2]} 18... d6 {[%clk 0:00:41.2]} 19. Bf2 {[%clk 0:01:07.7]} 19... Nd7
{[%clk 0:00:38.6]} 20. Bd3 {[%clk 0:01:07.4]} 20... Nc5 {[%clk 0:00:38.3]} 21.
Bc2 {[%clk 0:00:54.7]} 21... b5 {[%clk 0:00:38.7]} 22. Bxc5 {[%clk 0:00:22.8]}
22... dxc5 {[%clk 0:00:38.2]} 23. cxb5 {[%clk 0:00:24.7]} 23... axb5 {[%clk
0:00:22.8]} 24. Rxb5 {[%clk 0:00:26.6]} 24... c4 {[%clk 0:00:23.2]} 25. a4
{[%clk 0:00:24.7]} 25... Bd7 {[%clk 0:00:23.2]} 26. Rb4 {[%clk 0:00:21.6]} 26...
c3+ {[%clk 0:00:22.6]} 27. Kd1 {[%clk 0:00:19.1]} 27... O-O {[%clk 0:00:20.9]}
28. Ne2 {[%clk 0:00:15.7]} 28... Rfd8 {[%clk 0:00:20]} 29. Bb3 {[%clk
0:00:12.4]} 29... Kg7 {[%clk 0:00:20.2]} 30. Kc2 {[%clk 0:00:13.2]} 30... f4
{[%clk 0:00:16.2]} 31. g4 {[%clk 0:00:14.1]} 31... fxg3 {[%clk 0:00:16.5]} 32.
Nxg3 {[%clk 0:00:14.3]} 32... Rf8 {[%clk 0:00:15.9]} 33. Rf1 {[%clk 0:00:12.7]}
33... Bd6 {[%clk 0:00:16.1]} 34. Rc4 {[%clk 0:00:11.2]} 34... Rab8 {[%clk
0:00:14.3]} 35. Rxc3 {[%clk 0:00:10.1]} 35... g4 {[%clk 0:00:13.1]} 36. fxg4
{[%clk 0:00:08.1]} 36... Bxg4 {[%clk 0:00:11.9]} 37. Rg1 {[%clk 0:00:07.1]}
37... Rf2+ {[%clk 0:00:12.4]} 38. Kd3 {[%clk 0:00:07]} 38... Kf8 {[%clk
0:00:13.1]} 39. Ke4 {[%clk 0:00:05.5]} 39... Rxh2 {[%clk 0:00:13.3]} 40. Nf1
{[%clk 0:00:04.9]} 40... h5 {[%clk 0:00:12.1]} 41. Nxh2 {[%clk 0:00:03.2]} 41...
Bxh2 {[%clk 0:00:14]} 42. Rf1+ {[%clk 0:00:05.1]} 42... Kg7 {[%clk 0:00:13.9]}
43. d6 {[%clk 0:00:06.5]} 43... Bxd6 {[%clk 0:00:14.2]} 44. Kd3 {[%clk
0:00:04.3]} 44... Rb4 {[%clk 0:00:14]} 45. Kc2 {[%clk 0:00:03.8]} 45... h4
{[%clk 0:00:13.9]} 46. Rg1 {[%clk 0:00:05.2]} 46... h3 {[%clk 0:00:14.2]} 47.
Rc4 {[%clk 0:00:06.7]} 47... h2 {[%clk 0:00:12.5]} 48. Rgxg4+ {[%clk 0:00:07.4]}
48... Kf6 {[%clk 0:00:11.6]} 49. Rh4 {[%clk 0:00:08.7]} 49... Rxc4+ {[%clk
0:00:08.8]} 50. Bxc4 {[%clk 0:00:10.6]} 50... Bg3 {[%clk 0:00:10.3]} 51. Rh3
{[%clk 0:00:09.7]} 51... Ke5 {[%clk 0:00:09.8]} 52. Ba6 {[%clk 0:00:08.7]} 52...
e6 {[%clk 0:00:05.2]} 53. Bb7 {[%clk 0:00:09.9]} 53... Kf4 {[%clk 0:00:05.5]}
54. a5 {[%clk 0:00:10.6]} 54... Kg4 {[%clk 0:00:06.4]} 55. Rh8 {[%clk
0:00:09.5]} 1-0

[Event "*** Titled Tuesday Blitz"]
[Site "Chess.com"]
[Date "2019.07.02"]
[Round "10"]
[White "Andrii_Prydun"]
[Black "PotapovaM"]
[Result "0-1"]
[WhiteElo "2298"]
[BlackElo "2503"]
[TimeControl "180+2"]
[EndTime "15:16:00 PDT"]
[Termination "PotapovaM won by resignation"]

1. d4 {[%clk 0:03:01.9]} 1... Nf6 {[%clk 0:03:00.1]} 2. Nf3 {[%clk 0:03:02.1]}
2... e6 {[%clk 0:02:57.1]} 3. c3 {[%clk 0:03:01.6]} 3... c5 {[%clk 0:02:51.1]}
4. e3 {[%clk 0:02:59.5]} 4... d5 {[%clk 0:02:50.5]} 5. Be2 {[%clk 0:02:56.7]}
5... Nc6 {[%clk 0:02:51.1]} 6. Nbd2 {[%clk 0:02:57.3]} 6... Bd6 {[%clk 0:02:52]}
7. dxc5 {[%clk 0:02:58.5]} 7... Bxc5 {[%clk 0:02:52.8]} 8. b4 {[%clk 0:02:59.6]}
8... Bd6 {[%clk 0:02:52.8]} 9. a3 {[%clk 0:03:00.8]} 9... a5 {[%clk 0:02:48.3]}
10. b5 {[%clk 0:03:00.5]} 10... Ne5 {[%clk 0:02:49.5]} 11. Bb2 {[%clk
0:02:49.7]} 11... O-O {[%clk 0:02:48.4]} 12. c4 {[%clk 0:02:45.7]} 12... Nxc4
{[%clk 0:02:20.8]} 13. Bxc4 {[%clk 0:02:27.1]} 13... dxc4 {[%clk 0:02:22.7]} 14.
Nxc4 {[%clk 0:02:27.9]} 14... Be7 {[%clk 0:02:21.8]} 15. Qxd8 {[%clk 0:02:21.7]}
15... Rxd8 {[%clk 0:02:23.7]} 16. Nb6 {[%clk 0:02:20.4]} 16... Rb8 {[%clk
0:02:10.3]} 17. Be5 {[%clk 0:02:19]} 17... Bd6 {[%clk 0:02:11.3]} 18. O-O-O
{[%clk 0:02:00.8]} 18... Nd5 {[%clk 0:01:40.4]} 19. Bxd6 {[%clk 0:01:24.8]}
19... Rxd6 {[%clk 0:01:36.5]} 20. Nc4 {[%clk 0:01:25.3]} 20... Rd7 {[%clk
0:01:33.9]} 21. e4 {[%clk 0:01:24.8]} 21... Rc7 {[%clk 0:01:21.7]} 22. Ne5
{[%clk 0:01:04.7]} 22... f6 {[%clk 0:01:19.7]} 23. b6 {[%clk 0:01:05.2]} 23...
Rc5 {[%clk 0:01:17.4]} 24. Kb2 {[%clk 0:00:30.7]} 24... fxe5 {[%clk 0:01:06.3]}
25. Nxe5 {[%clk 0:00:31.6]} 25... Rb5+ {[%clk 0:00:56.4]} 26. Ka1 {[%clk
0:00:32.1]} 26... Rxb6 {[%clk 0:00:38.5]} 27. exd5 {[%clk 0:00:32.8]} 27... exd5
{[%clk 0:00:40.4]} 28. Rxd5 {[%clk 0:00:33.5]} 28... Be6 {[%clk 0:00:41.3]} 29.
Rxa5 {[%clk 0:00:32.8]} 29... Rf8 {[%clk 0:00:38.6]} 30. f3 {[%clk 0:00:26.2]}
30... Rd8 {[%clk 0:00:39.1]} 31. Rb1 {[%clk 0:00:21.8]} 31... Rbd6 {[%clk
0:00:35.6]} 32. Ra7 {[%clk 0:00:13.3]} 32... Rd2 {[%clk 0:00:35.6]} 33. Rb2
{[%clk 0:00:11.1]} 33... Rd1+ {[%clk 0:00:36.4]} 34. Rb1 {[%clk 0:00:11.8]}
34... h6 {[%clk 0:00:12.2]} 35. Rxd1 {[%clk 0:00:11.9]} 35... Rxd1+ {[%clk
0:00:14.1]} 36. Kb2 {[%clk 0:00:12.2]} 36... Bd5 {[%clk 0:00:12.8]} 37. Kc3
{[%clk 0:00:10.9]} 37... Rg1 {[%clk 0:00:12]} 38. Ra8+ {[%clk 0:00:08.1]} 38...
Kh7 {[%clk 0:00:12.8]} 39. Rd8 {[%clk 0:00:08.8]} 39... Be6 {[%clk 0:00:11.1]}
40. Re8 {[%clk 0:00:09.5]} 40... Bd5 {[%clk 0:00:11.5]} 41. Kd4 {[%clk
0:00:09.6]} 41... Rd1+ {[%clk 0:00:12]} 42. Kc5 {[%clk 0:00:10.2]} 42... Bb3
{[%clk 0:00:07]} 43. Re7 {[%clk 0:00:09.4]} 43... h5 {[%clk 0:00:04.9]} 44. Rxb7
{[%clk 0:00:09.2]} 44... Ba2 {[%clk 0:00:05.5]} 45. Rb2 {[%clk 0:00:08.6]} 45...
Bg8 {[%clk 0:00:04.2]} 46. a4 {[%clk 0:00:07.8]} 46... Rd5+ {[%clk 0:00:05.4]}
47. Kb6 {[%clk 0:00:06.8]} 47... Rxe5 {[%clk 0:00:07.3]} 48. a5 {[%clk
0:00:04.9]} 48... Bc4 {[%clk 0:00:08.1]} 49. Rb4 {[%clk 0:00:03.9]} 49... Bf1
{[%clk 0:00:08.6]} 50. Re4 {[%clk 0:00:04]} 50... Rb5+ {[%clk 0:00:08.5]} 51.
Kc6 {[%clk 0:00:03.1]} 51... Rxa5 {[%clk 0:00:09]} 52. g3 {[%clk 0:00:04.2]}
52... Bg2 {[%clk 0:00:09.7]} 53. Re3 {[%clk 0:00:04.5]} 53... Rf5 {[%clk
0:00:10.5]} 54. Kd6 {[%clk 0:00:04]} 54... Rxf3 {[%clk 0:00:11.4]} 55. Re5
{[%clk 0:00:04.7]} 55... Rf6+ {[%clk 0:00:11.9]} 56. Kc5 {[%clk 0:00:04.9]}
56... Bf3 {[%clk 0:00:13.3]} 57. Kd4 {[%clk 0:00:05.5]} 57... Bg4 {[%clk
0:00:12.6]} 58. h4 {[%clk 0:00:04.4]} 58... Rf3 {[%clk 0:00:12.7]} 59. Kc5
{[%clk 0:00:04.2]} 59... Rxg3 {[%clk 0:00:13.9]} 0-1

[Event "*** Titled Tuesday Blitz"]
[Site "Chess.com"]
[Date "2019.07.02"]
[Round "10"]
[White "ClockworkKubrick"]
[Black "przemekpiotrowski"]
[Result "0-1"]
[WhiteElo "2098"]
[BlackElo "2333"]
[TimeControl "180+2"]
[EndTime "15:16:04 PDT"]
[Termination "przemekpiotrowski won by resignation"]

1. e4 {[%clk 0:02:46.7]} 1... c5 {[%clk 0:03:00.1]} 2. Nf3 {[%clk 0:02:47.2]}
2... Nc6 {[%clk 0:03:01]} 3. Nc3 {[%clk 0:02:48.5]} 3... g6 {[%clk 0:02:47.1]}
4. Bb5 {[%clk 0:02:48.8]} 4... Bg7 {[%clk 0:02:47.2]} 5. Bxc6 {[%clk 0:02:48.9]}
5... dxc6 {[%clk 0:02:48.3]} 6. O-O {[%clk 0:02:50.5]} 6... e5 {[%clk
0:02:49.2]} 7. d3 {[%clk 0:02:51.8]} 7... Qe7 {[%clk 0:02:49.3]} 8. Be3 {[%clk
0:02:52.8]} 8... Nf6 {[%clk 0:02:48.3]} 9. a4 {[%clk 0:02:53.3]} 9... a5 {[%clk
0:02:46]} 10. Qd2 {[%clk 0:02:53.7]} 10... h6 {[%clk 0:02:46.1]} 11. h3 {[%clk
0:02:54.9]} 11... Nd7 {[%clk 0:02:46.7]} 12. Nh2 {[%clk 0:02:55.4]} 12... Nf8
{[%clk 0:02:47.8]} 13. f4 {[%clk 0:02:56.5]} 13... exf4 {[%clk 0:02:49.4]} 14.
Bxf4 {[%clk 0:02:57.4]} 14... Ne6 {[%clk 0:02:51]} 15. Be3 {[%clk 0:02:57.6]}
15... b6 {[%clk 0:02:51.6]} 16. Rf2 {[%clk 0:02:49.9]} 16... h5 {[%clk
0:02:24.4]} 17. Raf1 {[%clk 0:02:50.3]} 17... O-O {[%clk 0:02:25.1]} 18. Bh6
{[%clk 0:02:45.7]} 18... Bxh6 {[%clk 0:02:17.6]} 19. Qxh6 {[%clk 0:02:45.6]}
19... Qg5 {[%clk 0:02:18.7]} 20. Qxg5 {[%clk 0:02:42.9]} 20... Nxg5 {[%clk
0:02:20.6]} 21. Rf6 {[%clk 0:02:35.1]} 21... Be6 {[%clk 0:02:18.5]} 22. Nf3
{[%clk 0:02:33.3]} 22... Nh7 {[%clk 0:02:09.4]} 23. Rf4 {[%clk 0:02:32.5]} 23...
g5 {[%clk 0:02:09.2]} 24. Rf5 {[%clk 0:02:09.6]} 24... Bxf5 {[%clk 0:02:09.5]}
25. exf5 {[%clk 0:02:11.5]} 25... f6 {[%clk 0:02:04.3]} 26. Ne4 {[%clk
0:02:10.9]} 26... Rad8 {[%clk 0:02:04]} 27. g4 {[%clk 0:02:08.7]} 27... h4
{[%clk 0:02:03.5]} 28. Nfd2 {[%clk 0:01:56]} 28... Rf7 {[%clk 0:01:50.8]} 29.
Nc4 {[%clk 0:01:56.2]} 29... Rb7 {[%clk 0:01:50.9]} 30. Ncd6 {[%clk 0:01:53.2]}
30... Rbd7 {[%clk 0:01:38.1]} 31. Nc4 {[%clk 0:01:52.4]} 31... Rb8 {[%clk
0:01:39.5]} 32. Kf2 {[%clk 0:01:45.7]} 32... Kg7 {[%clk 0:01:36.7]} 33. Kf3
{[%clk 0:01:45.5]} 33... Nf8 {[%clk 0:01:38]} 34. Re1 {[%clk 0:01:43]} 34... Re7
{[%clk 0:01:38]} 35. Rf1 {[%clk 0:01:39.2]} 35... Nd7 {[%clk 0:01:37.9]} 36. Rd1
{[%clk 0:01:30.5]} 36... Ne5+ {[%clk 0:01:27.9]} 37. Nxe5 {[%clk 0:01:31.2]}
37... Rxe5 {[%clk 0:01:29.8]} 38. Rd2 {[%clk 0:01:31.5]} 38... Rd8 {[%clk
0:01:29.1]} 39. Re2 {[%clk 0:01:32.1]} 39... Rd4 {[%clk 0:01:24.8]} 40. b3
{[%clk 0:01:30]} 40... Rd7 {[%clk 0:01:24.2]} 41. Re3 {[%clk 0:01:27.9]} 41...
Rde7 {[%clk 0:01:24.2]} 42. Re1 {[%clk 0:01:22.6]} 42... Rb7 {[%clk 0:01:24.6]}
43. Rd1 {[%clk 0:01:22]} 43... Rd7 {[%clk 0:01:19.3]} 44. Ra1 {[%clk 0:01:22.2]}
44... Kf7 {[%clk 0:01:19.7]} 45. Rh1 {[%clk 0:01:20]} 45... Ke7 {[%clk
0:01:20.1]} 46. Ra1 {[%clk 0:01:20.7]} 46... Rb7 {[%clk 0:01:20.7]} 47. Kf2
{[%clk 0:01:16.9]} 47... Ra7 {[%clk 0:01:20]} 48. Kf3 {[%clk 0:01:17.2]} 48...
b5 {[%clk 0:01:20.6]} 49. Kf2 {[%clk 0:01:16.5]} 49... c4 {[%clk 0:01:21.3]} 50.
bxc4 {[%clk 0:01:13.5]} 50... bxc4 {[%clk 0:01:21.5]} 51. Ra3 {[%clk 0:01:15]}
51... cxd3 {[%clk 0:01:21.8]} 52. cxd3 {[%clk 0:01:16.3]} 52... Rb7 {[%clk
0:01:22.2]} 53. Rc3 {[%clk 0:01:16.1]} 53... Rb2+ {[%clk 0:01:16.9]} 54. Ke3
{[%clk 0:01:16.5]} 54... Rh2 {[%clk 0:01:12.1]} 55. Rxc6 {[%clk 0:01:17.6]}
55... Rxh3+ {[%clk 0:01:13.1]} 56. Kd4 {[%clk 0:01:19.3]} 56... Rg3 {[%clk
0:00:46.9]} 57. Nxf6 {[%clk 0:01:19.6]} 57... Ree3 {[%clk 0:00:44.7]} 58. Nd5+
{[%clk 0:01:20.6]} 58... Kd7 {[%clk 0:00:45.4]} 59. Rc7+ {[%clk 0:01:09.8]}
59... Kd6 {[%clk 0:00:45.6]} 60. Nxe3 {[%clk 0:01:01.6]} 60... Kxc7 {[%clk
0:00:44.8]} 61. f6 {[%clk 0:00:59.7]} 61... Kd7 {[%clk 0:00:31.7]} 62. f7 {[%clk
0:00:57.6]} 62... Ke7 {[%clk 0:00:17.5]} 63. Nf5+ {[%clk 0:00:56.7]} 63... Kxf7
{[%clk 0:00:19.1]} 64. Nxg3 {[%clk 0:00:58.4]} 64... hxg3 {[%clk 0:00:20.9]} 65.
Ke3 {[%clk 0:01:00]} 65... Ke6 {[%clk 0:00:22.6]} 66. Kf3 {[%clk 0:01:01.3]}
66... Ke5 {[%clk 0:00:24.3]} 67. Kxg3 {[%clk 0:01:02.6]} 67... Kd4 {[%clk
0:00:25.9]} 68. Kf2 {[%clk 0:00:55.9]} 68... Kxd3 {[%clk 0:00:27.5]} 69. Kf3
{[%clk 0:00:56.7]} 69... Kd4 {[%clk 0:00:29.1]} 70. Ke2 {[%clk 0:00:57.7]} 70...
Ke4 {[%clk 0:00:30]} 71. Kd2 {[%clk 0:00:58.9]} 71... Kf4 {[%clk 0:00:30.2]} 72.
Kd3 {[%clk 0:01:00.5]} 72... Kxg4 {[%clk 0:00:31.4]} 73. Kc4 {[%clk 0:01:02.4]}
73... Kf4 {[%clk 0:00:31.1]} 74. Kb5 {[%clk 0:01:04.3]} 74... g4 {[%clk
0:00:32.7]} 75. Kxa5 {[%clk 0:01:06.2]} 75... g3 {[%clk 0:00:34.4]} 76. Kb6
{[%clk 0:01:07.6]} 76... g2 {[%clk 0:00:36.3]} 77. a5 {[%clk 0:01:09]} 77...
g1=Q+ {[%clk 0:00:38.2]} 78. Kb7 {[%clk 0:01:09.8]} 78... Qb1+ {[%clk
0:00:39.1]} 79. Ka7 {[%clk 0:01:10.1]} 79... Qb5 {[%clk 0:00:38.7]} 80. a6
{[%clk 0:01:11.1]} 80... Ke5 {[%clk 0:00:40.1]} 81. Ka8 {[%clk 0:01:12.3]} 81...
Qxa6+ {[%clk 0:00:41]} 0-1

[Event "*** Titled Tuesday Blitz"]
[Site "Chess.com"]
[Date "2019.07.02"]
[Round "10"]
[White "M1711"]
[Black "colegiodemadrid"]
[Result "0-1"]
[WhiteElo "2483"]
[BlackElo "2458"]
[TimeControl "180+2"]
[EndTime "15:16:10 PDT"]
[Termination "colegiodemadrid won by checkmate"]

1. e4 {[%clk 0:03:01.9]} 1... c5 {[%clk 0:03:00.4]} 2. Nf3 {[%clk 0:03:03]} 2...
d6 {[%clk 0:03:01.1]} 3. Nc3 {[%clk 0:03:02.3]} 3... a6 {[%clk 0:03:00.6]} 4. d4
{[%clk 0:03:01.1]} 4... cxd4 {[%clk 0:03:02.5]} 5. Nxd4 {[%clk 0:03:03]} 5...
Nf6 {[%clk 0:03:02.9]} 6. Bg5 {[%clk 0:02:59.5]} 6... e6 {[%clk 0:03:01.6]} 7.
f4 {[%clk 0:03:00.7]} 7... h6 {[%clk 0:03:02]} 8. Bh4 {[%clk 0:03:00.1]} 8...
Qb6 {[%clk 0:03:03.4]} 9. Qd2 {[%clk 0:02:51.1]} 9... Qxb2 {[%clk 0:03:03.3]}
10. Rb1 {[%clk 0:02:51.4]} 10... Qa3 {[%clk 0:03:04.7]} 11. e5 {[%clk
0:02:52.4]} 11... dxe5 {[%clk 0:03:05.7]} 12. fxe5 {[%clk 0:02:53.5]} 12... Nfd7
{[%clk 0:03:07.2]} 13. Be2 {[%clk 0:02:35.1]} 13... Qc5 {[%clk 0:02:58.9]} 14.
Nxe6 {[%clk 0:02:07]} 14... Qxe5 {[%clk 0:02:39.1]} 15. Nd5 {[%clk 0:01:37.1]}
15... Bd6 {[%clk 0:02:12.5]} 16. Nef4 {[%clk 0:00:35.3]} 16... O-O {[%clk
0:02:00.8]} 17. O-O {[%clk 0:00:28.7]} 17... Nc6 {[%clk 0:01:59]} 18. Bg3 {[%clk
0:00:25.7]} 18... Qd4+ {[%clk 0:01:56.9]} 19. Qxd4 {[%clk 0:00:26.3]} 19... Nxd4
{[%clk 0:01:58.4]} 20. Bd3 {[%clk 0:00:26]} 20... Nc5 {[%clk 0:01:56.2]} 21. Nb6
{[%clk 0:00:22]} 21... Rb8 {[%clk 0:01:49.9]} 22. Nxc8 {[%clk 0:00:23]} 22...
Rbxc8 {[%clk 0:01:48.9]} 23. Nd5 {[%clk 0:00:24.4]} 23... Rcd8 {[%clk
0:01:33.1]} 24. Bxd6 {[%clk 0:00:20.6]} 24... Rxd6 {[%clk 0:01:34.5]} 25. Ne7+
{[%clk 0:00:22.5]} 25... Kh8 {[%clk 0:01:34.8]} 26. Ng6+ {[%clk 0:00:20.8]}
26... Kg8 {[%clk 0:00:53.6]} 27. Ne7+ {[%clk 0:00:18.3]} 27... Kh8 {[%clk
0:00:52.4]} 28. Ng6+ {[%clk 0:00:20.2]} 28... Kg8 {[%clk 0:00:48.4]} 29. Nxf8
{[%clk 0:00:22.1]} 29... Kxf8 {[%clk 0:00:49.5]} 30. Bc4 {[%clk 0:00:16.8]}
30... f6 {[%clk 0:00:48.8]} 31. Rbd1 {[%clk 0:00:15.7]} 31... Ne4 {[%clk
0:00:40.3]} 32. Rfe1 {[%clk 0:00:06.1]} 32... f5 {[%clk 0:00:39.4]} 33. h3
{[%clk 0:00:05.7]} 33... g6 {[%clk 0:00:37.1]} 34. a3 {[%clk 0:00:05.4]} 34...
Kg7 {[%clk 0:00:37.5]} 35. Bd3 {[%clk 0:00:06]} 35... Nc3 {[%clk 0:00:37]} 36.
Re7+ {[%clk 0:00:05.5]} 36... Kf6 {[%clk 0:00:37.2]} 37. Rde1 {[%clk 0:00:07.1]}
37... b5 {[%clk 0:00:33.4]} 38. Rh7 {[%clk 0:00:06.3]} 38... Nd5 {[%clk
0:00:32.1]} 39. Rxh6 {[%clk 0:00:06.4]} 39... Kg5 {[%clk 0:00:31.8]} 40. Rh8
{[%clk 0:00:07.3]} 40... Nf4 {[%clk 0:00:30]} 41. Ra8 {[%clk 0:00:04.8]} 41...
Kf6 {[%clk 0:00:26.2]} 42. Ree8 {[%clk 0:00:04.8]} 42... Kg5 {[%clk 0:00:24.9]}
43. Kh2 {[%clk 0:00:04.2]} 43... Nde6 {[%clk 0:00:21.4]} 44. g3 {[%clk
0:00:02.3]} 44... Nd5 {[%clk 0:00:22.4]} 45. h4+ {[%clk 0:00:03.2]} 45... Kf6
{[%clk 0:00:23.3]} 46. Rh8 {[%clk 0:00:02.9]} 46... Nc5 {[%clk 0:00:23.5]} 47.
Bf1 {[%clk 0:00:04.2]} 47... Ne3 {[%clk 0:00:23]} 48. Be2 {[%clk 0:00:04.1]}
48... Rd2 {[%clk 0:00:23.9]} 49. Kh3 {[%clk 0:00:04.2]} 49... Rxe2 {[%clk
0:00:24.5]} 50. Raf8+ {[%clk 0:00:04.6]} 50... Ke5 {[%clk 0:00:25.6]} 51. Re8+
{[%clk 0:00:05.7]} 51... Ne6 {[%clk 0:00:26.5]} 52. g4 {[%clk 0:00:04.7]} 52...
f4 {[%clk 0:00:26]} 53. g5 {[%clk 0:00:04.9]} 53... Nf5 {[%clk 0:00:26.4]} 54.
h5 {[%clk 0:00:05.5]} 54... Re3+ {[%clk 0:00:27.4]} 55. Kh2 {[%clk 0:00:06.4]}
55... gxh5 {[%clk 0:00:25.7]} 56. g6 {[%clk 0:00:07.8]} 56... Rg3 {[%clk
0:00:26.3]} 57. Rxh5 {[%clk 0:00:07.5]} 57... Rxg6 {[%clk 0:00:25.5]} 58. Ra8
{[%clk 0:00:08.4]} 58... Nd4 {[%clk 0:00:21.1]} 59. Re8+ {[%clk 0:00:09.1]}
59... Kd5 {[%clk 0:00:22.2]} 60. Rd8+ {[%clk 0:00:09.7]} 60... Ke4 {[%clk
0:00:23.5]} 61. Re8+ {[%clk 0:00:08.4]} 61... Kf3 {[%clk 0:00:23.7]} 62. Rh3+
{[%clk 0:00:09.7]} 62... Ng3 {[%clk 0:00:23.7]} 63. Re1 {[%clk 0:00:09.4]} 63...
Kf2 {[%clk 0:00:24]} 64. Rd1 {[%clk 0:00:02.8]} 64... Nf3# {[%clk 0:00:24.8]}
0-1